[Event "Romanian Superliga 2024"]
[Site "Mamaia"]
[Date "2024.09.28"]
[Round "1.9"]
[White "Serban, Cristian-Stefan"]
[Black "Motylev, Alexander"]
[Result "0-1"]
[ECO "E01"]
[WhiteElo "2269"]
[BlackElo "2582"]
[Annotator "RC"]
[PlyCount "258"]
[EventDate "2024.09.26"]
[EventType "team-tourn"]
[EventCountry "ROU"]
[SourceTitle "playchess.com"]
[Source "ChessBase"]
[SourceQuality "1"]
[TimeControl "40/5400+30:1800+30"]

1. c4 {[%emt 0:00:07]} c6 {[%emt 0:00:10]} 2. g3 {[%emt 0:00:09]} d5 {[%emt 0:00:15]} 3. Bg2 {[%emt 0:00:11]} Nf6 {[%emt 0:10:49]} 4. Nf3 {[%emt 0:00:28]} e6 {[%emt 0:00:33]} 5. b3 {[%emt 0:01:16]} Bd6 {[%emt 0:02:02]} 6. Bb2 {[%emt 0:00:51]} O-O {[%emt 0:00:09]} 7. O-O {[%emt 0:00:05]} Nbd7 {[%emt 0:00:25]} 8. d4 {[%emt 0:00:08]} Re8 {[%emt 0:00:37]} 9. Nc3 {[%emt 0:06:00]} dxc4 {[%emt 0:02:12]} 10. bxc4 {[%emt 0:00:07]} e5 {[%emt 0:00:14]} 11. e3 {[%emt 0:04:55]} exd4 {[%emt 0:04:28]} 12. exd4 {[%emt 0:01:46]} Nf8 {[%emt 0:00:05]} 13. Qb3 {[%emt 0:17:26]} Bf5 {[%emt 0:03:35]} 14. Rfe1 {[%emt 0:04:54]} Ne6 {[%emt 0:06:51]} 15. Rad1 {[%emt 0:06:50]} h6 {[%emt 0:02:04]} 16. Bc1 {[%emt 0:07:07]} Rb8 {[%emt 0:16:14]} 17. h3 {[%emt 0:03:31]} Bf8 {[%emt 0:04:52]} 18. Be3 {[%emt 0:01:16]} Qa5 {[%emt 0:02:16]} 19. Bxh6 {[%emt 0:07:05]} gxh6 {[%emt 0:07:43]} 20. Re5 {[%emt 0:00:10]} Nc5 {[%emt 0:00:21]} 21. dxc5 {[%emt 0:00:21]} Rxe5 {[%emt 0:03:13]} 22. Nxe5 {[%emt 0:00:05]} Qc7 {[%emt 0:05:23]} 23. Nd3 {[%emt 0:01:33]} Re8 {[%emt 0:01:38]} 24. Na4 {[%emt 0:05:25]} Ne4 {[%emt 0:07:33]} 25. Nf4 {[%emt 0:11:12]} Bg7 {[%emt 0:04:32]} 26. Nh5 {[%emt 0:04:03]} Bh8 {[%emt 0:09:43]} 27. Qf3 {[%emt 0:04:26]} Qe5 {[%emt 0:02:04]} 28. Qe3 {[%emt 0:04:21]} Bxh3 {[%emt 0:00:48]} 29. Nf4 {[%emt 0:04:19]} Bf5 {[%emt 0:00:26]} 30. Nd3 {[%emt 0:01:19]} Qd4 {[%emt 0:02:44]} 31. Qf4 {[%emt 0:01:14]} Bg6 {[%emt 0:00:17]} 32. Ndb2 {[%emt 0:00:03]} Qf6 {[%emt 0:01:08]} 33. Nd3 {[%emt 0:01:33]} Rd8 {[%emt 0:00:49]} 34. Qe3 {[%emt 0:02:00]} Qg5 {[%emt 0:00:33]} 35. Re1 {[%emt 0:00:33]} Qxe3 {[%emt 0:00:33]} 36. Rxe3 {[%emt 0:00:02]} Nxg3 {[%emt 0:00:21]} 37. Nf4 {[%emt 0:00:40]} Nf5 {[%emt 0:00:15]} 38. Rb3 {[%emt 0:00:26]} Rd1+ {[%emt 0:00:28]} 39. Bf1 {[%emt 0:00:02]} Bd4 {[%emt 0:00:59]} 40. Ne2 {[%emt 0:00:00]} Be5 {[%emt 0:00:00]} 41. Rxb7 {[%emt 0:02:48]} Nd4 {[%emt 0:05:42]} 42. Nac3 {[%emt 0:06:15]} Nxe2+ {[%emt 0:05:37]} 43. Nxe2 {[%emt 0:00:04]} Bd3 {[%emt 0:00:24]} 44. Kg2 {[%emt 0:00:09]} Bxc4 {[%emt 0:01:24]} 45. Rxa7 {[%emt 0:00:46]} Bd5+ {[%emt 0:01:07]} 46. f3 {[%emt 0:04:04]} Rd3 {[%emt 0:00:25]} 47. Ng1 {[%emt 0:02:25]} Rd2+ {[%emt 0:00:31]} 48. Ne2 {[%emt 0:00:09]} Bd4 {[%emt 0:04:07]} 49. Kg3 {[%emt 0:02:40]} Bxc5 {[%emt 0:00:19]} 50. Ra8+ {[%emt 0:00:04]} Kg7 {[%emt 0:00:23]} 51. Nc3 {[%emt 0:00:58]} Bd6+ {[%emt 0:01:23]} 52. f4 {[%emt 0:00:55]} Rd4 {[%emt 0:07:37]} 53. Nxd5 {[%emt 0:00:58]} cxd5 {[%emt 0:00:05]} 54. a4 {[%emt 0:00:33]} Rxf4 {[%emt 0:00:48]} 55. Kg2 {[%emt 0:00:07]} Rg4+ {[%emt 0:02:38]} 56. Kf2 {[%emt 0:03:38]} Bg3+ {[%emt 0:05:20]} 57. Kf3 {[%emt 0:00:41]} Rf4+ {[%emt 0:00:04]} 58. Kxg3 {[%emt 0:00:08]} Rxf1 {[%emt 0:00:02]} 59. Rd8 {[%emt 0:00:05]} Ra1 {[%emt 0:00:44]} 60. Rxd5 {[%emt 0:00:06]} Ra3+ {[%emt 0:00:11]} 61. Kg4 {[%emt 0:00:25]} Rxa4+ {[%emt 0:00:05]} 62. Kg3 {[%emt 0:00:09]} Ra6 {[%emt 0:00:14]} 63. Rb5 {[%emt 0:00:46]} Rg6+ {[%emt 0:00:06]} 64. Kf4 {[%emt 0:01:24]} Rf6+ {[%emt 0:00:23]} 65. Kg4 {[%emt 0:00:24]} Rg6+ {[%emt 0:00:05]} 66. Kf4 {[%emt 0:00:06]} Rg2 {[%emt 0:00:06]} 67. Ra5 {[%emt 0:00:40]} Rg1 {[%emt 0:00:04]} 68. Rb5 {[%emt 0:00:03]} Kg6 {[%emt 0:00:04]} 69. Ra5 {[%emt 0:02:35]} Rg2 {[%emt 0:02:28]} 70. Rb5 {[%emt 0:00:06]} Rg1 {[%emt 0:00:05]} 71. Ra5 {[%emt 0:00:04]} h5 {[%emt 0:00:52]} 72. Ra8 {[%emt 0:00:59]} Kg7 {[%emt 0:00:21]} 73. Ra5 {[%emt 0:00:27]} Kh6 {[%emt 0:00:19]} 74. Ra8 {[%emt 0:01:45]} Rg4+ {[%emt 0:00:46]} 75. Kf3 {[%emt 0:01:06]} Kg7 {[%emt 0:00:31]} 76. Ra5 {[%emt 0:00:08]} Kg6 {[%emt 0:00:06]} 77. Ra8 {[%emt 0:00:41]} Kh7 {[%emt 0:00:46]} 78. Ra5 {[%emt 0:00:12]} Kh6 {[%emt 0:00:16]} 79. Ra8 {[%emt 0:00:13]} Kg5 {[%emt 0:01:14]} 80. Rg8+ {[%emt 0:01:23]} Kh4 {[%emt 0:00:19]} 81. Rf8 {[%emt 0:00:08]} Rg3+ {[%emt 0:01:51]} 82. Kf2 {[%emt 0:02:46]} Rg7 {[%emt 0:00:05]} 83. Rh8 {[%emt 0:00:43]} Rg5 {[%emt 0:01:11]} 84. Rh7 {[%emt 0:00:29]} f6 {[%emt 0:00:11]} 85. Rh6 {[%emt 0:00:08]} f5 {[%emt 0:01:27]} 86. Rb6 {[%emt 0:03:50]} Rg4 {[%emt 0:00:45]} 87. Rb5 {[%emt 0:00:36]} Kg5 {[%emt 0:00:08]} 88. Rb8 {[%emt 0:00:10]} Ra4 {[%emt 0:00:46]} 89. Kg3 {[%emt 0:01:26]} Ra3+ {[%emt 0:00:26]} 90. Kg2 {[%emt 0:00:06]} Ra2+ {[%emt 0:00:03]} 91. Kf3 {[%emt 0:00:21]} Ra3+ {[%emt 0:00:23]} 92. Kg2 {[%emt 0:00:09]} Kg4 {[%emt 0:00:11]} 93. Rg8+ {[%emt 0:00:12]} Kh4 {[%emt 0:00:40]} 94. Rf8 {[%emt 0:00:13]} Kg5 {[%emt 0:00:18]} 95. Rg8+ {[%emt 0:00:05]} Kf4 {[%emt 0:00:04]} 96. Rh8 {[%emt 0:00:09]} Ra2+ {[%emt 0:01:00]} 97. Kh3 {[%emt 0:00:10]} Ra1 {[%emt 0:00:40]} 98. Kg2 {[%emt 0:00:07]} Ra2+ {[%emt 0:00:53]} 99. Kh3 {[%emt 0:00:03]} Ra3+ {[%emt 0:00:07]} 100. Kg2 {[%emt 0:00:27]} Rg3+ {[%emt 0:00:26]} 101. Kf2 {[%emt 0:01:18]} Rg5 {[%emt 0:00:09]} 102. Rh7 {[%emt 0:01:47]} Kg4 {[%emt 0:00:23]} 103. Kg2 {[%emt 0:00:05]} Rg8 {[%emt 0:00:38]} 104. Rh6 {[%emt 0:01:09]} Kh4+ {[%emt 0:01:16]} 105. Kf3 {[%emt 0:00:44]} Rg1 {[%emt 0:00:16]} 106. Kf2 {[%emt 0:00:27]} Ra1 {[%emt 0:00:37]} 107. Rh8 {[%emt 0:01:37]} Kg4 {[%emt 0:00:33]} 108. Rg8+ {[%emt 0:00:23]} Kf4 {[%emt 0:00:06]} 109. Rh8 {[%emt 0:00:05]} Ra2+ {[%emt 0:00:12]} 110. Kg1 {[%emt 0:00:05]} h4 {[%emt 0:00:29]} 111. Kf1 {[%emt 0:00:52]} Kg3 {[%emt 0:01:24]} 112. Rg8+ {[%emt 0:00:51]} Kf3 {[%emt 0:00:21]} 113. Kg1 {[%emt 0:00:09]} f4 {[%emt 0:00:07]} 114. Rh8 {[%emt 0:00:26]} Rd2 {[%emt 0:00:14]} 115. Rh7 {[%emt 0:00:26]} Rc2 {[%emt 0:00:07]} 116. Rh8 {[%emt 0:00:05]} Rb2 {[%emt 0:00:06]} 117. Rh7 {[%emt 0:00:06]} Re2 {[%emt 0:00:29]} 118. Rh8 {[%emt 0:01:10]} Rc2 {[%emt 0:00:05]} 119. Rh7 {[%emt 0:00:04]} Rb2 {[%emt 0:00:08]} 120. Rh8 {[%emt 0:00:12]} Rg2+ {[%emt 0:01:16]} 121. Kf1 {[%emt 0:00:18]} Rg4 {[%emt 0:01:05]} 122. Ra8 {[%emt 0:01:33]} Kg3 {[%emt 0:00:19]} 123. Kg1 {[%emt 0:01:36]} f3 {[%emt 0:01:03]} 124. Rf8 {[%emt 0:00:32]} h3 {[%emt 0:00:43]} 125. Rf7 {[%emt 0:01:41]} Rg5 {[%emt 0:00:13]} 126. Rf8 {[%emt 0:00:07]} Rg4 {[%emt 0:00:30]} 127. Rf7 {[%emt 0:00:05]} h2+ {[%emt 0:01:02]} 128. Kh1 {[%emt 0:00:07]} f2 {[%emt 0:00:52]} 129. Rf8 {[%emt 0:00:14]} Rf4 {[%emt 0:00:21]} 0-1

[Event "Romanian Superliga 2024"]
[Site "Mamaia"]
[Date "2024.09.28"]
[Round "1.10"]
[White "Gavrilescu, David"]
[Black "Tampea, Radu"]
[Result "1-0"]
[ECO "B30"]
[WhiteElo "2547"]
[BlackElo "2226"]
[Annotator "RC"]
[PlyCount "69"]
[EventDate "2024.09.26"]
[EventType "team-tourn"]
[EventCountry "ROU"]
[SourceTitle "playchess.com"]
[Source "ChessBase"]
[SourceQuality "1"]
[TimeControl "40/5400+30:1800+30"]

1. e4 {[%emt 0:00:18]} c5 {[%emt 0:00:25]} 2. Nf3 {[%emt 0:00:34]} Nc6 {[%emt 0:00:35]} 3. Bb5 {[%emt 0:00:28]} e5 {[%emt 0:00:44]} 4. O-O {[%emt 0:01:52]} Bd6 {[%emt 0:00:16]} 5. Bc4 {[%emt 0:08:33]} Nf6 {[%emt 0:03:49]} 6. d3 {[%emt 0:02:27]} O-O {[%emt 0:01:19]} 7. Nc3 {[%emt 0:03:17]} Be7 {[%emt 0:06:31]} 8. h3 {[%emt 0:08:14]} h6 {[%emt 0:08:03]} 9. Nh2 {[%emt 0:03:33]} d6 {[%emt 0:06:56]} 10. f4 {[%emt 0:01:26]} exf4 {[%emt 0:00:40]} 11. Bxf4 {[%emt 0:00:53]} Nd4 {[%emt 0:19:03]} 12. Nd5 {[%emt 0:09:05]} Ne6 {[%emt 0:20:34]} 13. Bd2 {[%emt 0:12:11]} Nxd5 {[%emt 0:02:08]} 14. Bxd5 {[%emt 0:00:07]} Nc7 {[%emt 0:05:11]} 15. Bb3 {[%emt 0:07:39]} d5 {[%emt 0:06:22]} 16. exd5 {[%emt 0:03:38]} Nxd5 {[%emt 0:00:05]} 17. Qf3 {[%emt 0:05:26]} Be6 {[%emt 0:04:07]} 18. Ng4 {[%emt 0:02:35]} Bg5 {[%emt 0:00:27]} 19. Bxg5 {[%emt 0:00:20]} Qxg5 {[%emt 0:00:10]} 20. Rae1 {[%emt 0:00:06]} Rad8 {[%emt 0:05:28]} 21. Re5 {[%emt 0:04:07]} Bxg4 {[%emt 0:00:08]} 22. Qg3 {[%emt 0:00:33]} Qd2 {[%emt 0:04:24]} 23. hxg4 {[%emt 0:02:48]} Nb6 {[%emt 0:02:50]} 24. Rxc5 {[%emt 0:01:14]} Qb4 {[%emt 0:00:34]} 25. Rcf5 {[%emt 0:00:44]} Qd4+ {[%emt 0:01:18]} 26. Kh2 {[%emt 0:00:28]} Kh8 {[%emt 0:00:46]} 27. Rxf7 {[%emt 0:00:13]} Rxf7 {[%emt 0:00:05]} 28. Rxf7 {[%emt 0:00:06]} Nd5 {[%emt 0:00:36]} 29. c3 {[%emt 0:00:45]} Qb6 {[%emt 0:00:42]} 30. d4 {[%emt 0:01:56]} Qg6 {[%emt 0:00:30]} 31. Rxb7 {[%emt 0:02:06]} Nf6 {[%emt 0:00:10]} 32. Be6 {[%emt 0:00:28]} Re8 {[%emt 0:01:00]} 33. Rb8 {[%emt 0:00:22]} Ne4 {[%emt 0:00:32]} 34. Qe5 {[%emt 0:00:10]} Nf6 {[%emt 0:00:27]} 35. Bf5 {[%emt 0:00:28]} 1-0

[Event "Romanian Superliga 2024"]
[Site "Mamaia"]
[Date "2024.09.28"]
[Round "1.11"]
[White "Padurariu, Mihai-Edward"]
[Black "Costachi, Mihnea"]
[Result "1/2-1/2"]
[ECO "C50"]
[WhiteElo "2233"]
[BlackElo "2472"]
[Annotator "RC"]
[PlyCount "105"]
[EventDate "2024.09.26"]
[EventType "team-tourn"]
[EventCountry "ROU"]
[SourceTitle "playchess.com"]
[Source "ChessBase"]
[SourceQuality "1"]
[TimeControl "40/5400+30:1800+30"]

1. e4 {[%emt 0:00:09]} e5 {[%emt 0:00:04]} 2. Nf3 {[%emt 0:00:16]} Nc6 {[%emt 0:03:02]} 3. Bc4 {[%emt 0:00:18]} Nf6 {[%emt 0:00:40]} 4. d3 {[%emt 0:00:14]} Bc5 {[%emt 0:01:52]} 5. Nc3 {[%emt 0:00:27]} h6 {[%emt 0:03:13]} 6. h3 {[%emt 0:00:23]} a6 {[%emt 0:03:11]} 7. Be3 {[%emt 0:00:37]} Bxe3 {[%emt 0:17:33]} 8. fxe3 {[%emt 0:00:05]} d6 {[%emt 0:00:05]} 9. d4 {[%emt 0:04:51]} Nxe4 {[%emt 0:06:41]} 10. Nxe4 {[%emt 0:09:15]} d5 {[%emt 0:00:17]} 11. Bd3 {[%emt 0:02:03]} dxe4 {[%emt 0:05:28]} 12. Bxe4 {[%emt 0:00:06]} exd4 {[%emt 0:01:33]} 13. exd4 {[%emt 0:01:15]} O-O {[%emt 0:02:18]} 14. O-O {[%emt 0:00:43]} Qd6 {[%emt 0:03:19]} 15. c3 {[%emt 0:10:34]} Be6 {[%emt 0:09:22]} 16. Bc2 {[%emt 0:09:33]} Bc4 {[%emt 0:01:17]} 17. Rf2 {[%emt 0:00:50]} Rae8 {[%emt 0:01:36]} 18. Nd2 {[%emt 0:02:42]} Be6 {[%emt 0:09:01]} 19. Ne4 {[%emt 0:05:22]} Qd5 {[%emt 0:06:17]} 20. Qd3 {[%emt 0:06:47]} f5 {[%emt 0:00:53]} 21. Nc5 {[%emt 0:00:18]} Ne5 {[%emt 0:00:44]} 22. Qg3 {[%emt 0:02:14]} Nc4 {[%emt 0:00:50]} 23. Qxc7 {[%emt 0:22:11]} Bc8 {[%emt 0:00:53]} 24. Bb3 {[%emt 0:01:21]} b5 {[%emt 0:01:23]} 25. Raf1 {[%emt 0:09:55]} Re3 {[%emt 0:04:34]} 26. a4 {[%emt 0:00:51]} Rfe8 {[%emt 0:00:31]} 27. axb5 {[%emt 0:04:12]} axb5 {[%emt 0:00:05]} 28. Na4 {[%emt 0:02:24]} Be6 {[%emt 0:05:58]} 29. Nb6 {[%emt 0:00:39]} Qd6 {[%emt 0:00:11]} 30. Qxd6 {[%emt 0:00:20]} Nxd6 {[%emt 0:00:01]} 31. Bxe6+ {[%emt 0:01:54]} R8xe6 {[%emt 0:02:39]} 32. Nd5 {[%emt 0:01:06]} Re1 {[%emt 0:00:06]} 33. Nf4 {[%emt 0:00:56]} R6e3 {[%emt 0:01:53]} 34. Rxe1 {[%emt 0:01:05]} Rxe1+ {[%emt 0:00:04]} 35. Rf1 {[%emt 0:01:16]} Re4 {[%emt 0:00:42]} 36. Nd3 {[%emt 0:00:29]} Re3 {[%emt 0:00:53]} 37. Rf3 {[%emt 0:00:35]} Re2 {[%emt 0:01:52]} 38. Rf2 {[%emt 0:00:06]} Re3 {[%emt 0:00:12]} 39. Ne5 {[%emt 0:00:55]} Re1+ {[%emt 0:01:52]} 40. Kh2 {[%emt 0:00:00]} g5 {[%emt 0:00:00]} 41. Rc2 {[%emt 0:16:44]} Ne4 {[%emt 0:07:36]} 42. Nd3 {[%emt 0:00:33]} Re3 {[%emt 0:00:22]} 43. Ne5 {[%emt 0:12:13]} f4 {[%emt 0:17:25]} 44. Rc1 {[%emt 0:02:26]} Re2 {[%emt 0:00:13]} 45. b3 {[%emt 0:00:26]} Nd2 {[%emt 0:01:14]} 46. Kg1 {[%emt 0:00:43]} Nxb3 {[%emt 0:00:17]} 47. Rb1 {[%emt 0:00:32]} Nd2 {[%emt 0:00:05]} 48. Rxb5 {[%emt 0:00:28]} Ne4 {[%emt 0:00:13]} 49. Rb8+ {[%emt 0:00:48]} Kg7 {[%emt 0:00:05]} 50. Rb7+ {[%emt 0:00:14]} Kg8 {[%emt 0:02:08]} 51. Rb8+ {[%emt 0:00:06]} Kg7 {[%emt 0:00:04]} 52. Rb7+ {[%emt 0:00:04]} Kg8 {[%emt 0:01:10]} 53. Rb8+ {[%emt 0:00:34]} 1/2-1/2

[Event "Romanian Superliga 2024"]
[Site "Mamaia"]
[Date "2024.09.28"]
[Round "1.12"]
[White "Tudor, Henry Edward"]
[Black "Radu, David Cr."]
[Result "1-0"]
[ECO "D31"]
[WhiteElo "2347"]
[BlackElo "2159"]
[Annotator "ChessBase"]
[PlyCount "51"]
[EventDate "2024.09.26"]
[EventType "team-tourn"]
[EventCountry "ROU"]
[SourceTitle "playchess.com"]
[Source "ChessBase"]
[SourceQuality "1"]
[TimeControl "40/5400+30:1800+30"]

1. d4 {[%emt 0:00:10]} d5 {[%emt 0:00:14]} 2. c4 {[%emt 0:00:05]} e6 {[%emt 0:00:05]} 3. Nc3 {[%emt 0:00:31]} a6 {[%emt 0:00:21]} 4. cxd5 {[%emt 0:00:39]} exd5 {[%emt 0:00:02]} 5. Qb3 {[%emt 0:00:08]} Bd6 {[%emt 0:01:14]} 6. Qxd5 {[%emt 0:01:42]} Nf6 {[%emt 0:00:07]} 7. Qb3 {[%emt 0:00:03]} c5 {[%emt 0:00:25]} 8. Be3 {[%emt 0:00:04]} cxd4 {[%emt 0:02:09]} 9. Bxd4 {[%emt 0:00:22]} Nc6 {[%emt 0:00:07]} 10. Bb6 {[%emt 0:00:39]} Qe7 {[%emt 0:03:33]} 11. e3 {[%emt 0:00:12]} Be6 {[%emt 0:28:26]} 12. Bc4 {[%emt 0:04:18]} Bxc4 {[%emt 0:01:59]} 13. Qxc4 {[%emt 0:00:01]} Nb4 {[%emt 0:00:10]} 14. Rd1 {[%emt 0:09:37]} Nd7 {[%emt 0:19:21]} 15. Bd4 {[%emt 0:09:48]} b5 {[%emt 0:12:26]} 16. Qe2 {[%emt 0:04:45]} O-O {[%emt 0:00:41]} 17. Nf3 {[%emt 0:05:39]} Rad8 {[%emt 0:04:27]} 18. O-O {[%emt 0:04:13]} f5 {[%emt 0:07:15]} 19. a3 {[%emt 0:09:48]} Nc6 {[%emt 0:00:08]} 20. a4 {[%emt 0:00:12]} Nxd4 {[%emt 0:05:59]} 21. Nxd4 {[%emt 0:00:23]} b4 {[%emt 0:01:11]} 22. Nc6 {[%emt 0:06:31]} Qf6 {[%emt 0:01:57]} 23. Nxd8 {[%emt 0:02:10]} Rxd8 {[%emt 0:01:25]} 24. Nd5 {[%emt 0:02:34]} Qh6 {[%emt 0:00:25]} 25. h3 {[%emt 0:01:07]} Nc5 {[%emt 0:00:17]} 26. Qc4 {[%emt 0:03:30]} 1-0

[Event "Romanian Superliga 2024"]
[Site "Mamaia"]
[Date "2024.09.28"]
[Round "1.13"]
[White "Theodorou, Nikolas"]
[Black "Petkov, Momchil"]
[Result "1/2-1/2"]
[ECO "E94"]
[WhiteElo "2619"]
[BlackElo "2540"]
[Annotator "RC"]
[PlyCount "143"]
[EventDate "2024.09.26"]
[EventType "team-tourn"]
[EventCountry "ROU"]
[SourceTitle "playchess.com"]
[Source "ChessBase"]
[SourceQuality "1"]
[TimeControl "40/5400+30:1800+30"]

1. d4 {[%emt 0:00:03]} Nf6 {[%emt 0:00:25]} 2. c4 {[%emt 0:00:07]} g6 {[%emt 0:00:13]} 3. Nc3 {[%emt 0:00:05]} Bg7 {[%emt 0:00:11]} 4. e4 {[%emt 0:00:06]} d6 {[%emt 0:00:13]} 5. Be2 {[%emt 0:00:12]} O-O {[%emt 0:00:11]} 6. Nf3 {[%emt 0:00:02]} e5 {[%emt 0:00:17]} 7. O-O {[%emt 0:00:06]} Bg4 {[%emt 0:00:22]} 8. d5 {[%emt 0:00:17]} a5 {[%emt 0:00:31]} 9. Ne1 {[%emt 0:00:04]} Bd7 {[%emt 0:00:35]} 10. Nd3 {[%emt 0:01:21]} Na6 {[%emt 0:00:27]} 11. a3 {[%emt 0:00:05]} a4 {[%emt 0:01:07]} 12. f3 {[%emt 0:05:07]} Qe8 {[%emt 0:00:18]} 13. Be3 {[%emt 0:00:06]} Nh5 {[%emt 0:06:34]} 14. c5 {[%emt 0:10:03]} Nf4 {[%emt 0:05:18]} 15. cxd6 {[%emt 0:10:36]} Nxe2+ {[%emt 0:01:13]} 16. Qxe2 {[%emt 0:02:35]} cxd6 {[%emt 0:00:11]} 17. b3 {[%emt 0:02:30]} axb3 {[%emt 0:02:41]} 18. Rfb1 {[%emt 0:02:53]} Nc7 {[%emt 0:13:04]} 19. Rxb3 {[%emt 0:02:42]} Nb5 {[%emt 0:01:35]} 20. Qb2 {[%emt 0:01:30]} Nd4 {[%emt 0:13:13]} 21. Rxb7 {[%emt 0:00:14]} Qc8 {[%emt 0:09:55]} 22. Rc1 {[%emt 0:20:25]} Rb8 {[%emt 0:00:44]} 23. Rxb8 {[%emt 0:07:35]} Qxb8 {[%emt 0:00:08]} 24. Qxb8 {[%emt 0:00:37]} Rxb8 {[%emt 0:00:08]} 25. Nb4 {[%emt 0:00:40]} Rc8 {[%emt 0:06:21]} 26. Kf2 {[%emt 0:03:13]} f5 {[%emt 0:16:25]} 27. Nb1 {[%emt 0:03:27]} Ra8 {[%emt 0:02:23]} 28. Rc7 {[%emt 0:01:34]} Be8 {[%emt 0:02:52]} 29. Rb7 {[%emt 0:09:58]} Rc8 {[%emt 0:02:04]} 30. Rb6 {[%emt 0:01:32]} f4 {[%emt 0:04:48]} 31. Bd2 {[%emt 0:03:11]} Bf8 {[%emt 0:01:41]} 32. Nc3 {[%emt 0:01:27]} Be7 {[%emt 0:03:19]} 33. a4 {[%emt 0:03:27]} Bd8 {[%emt 0:01:24]} 34. Ra6 {[%emt 0:00:02]} Rb8 {[%emt 0:02:01]} 35. Nd3 {[%emt 0:02:32]} Nb3 {[%emt 0:01:09]} 36. Ke2 {[%emt 0:03:00]} Bb6 {[%emt 0:00:48]} 37. Nb5 {[%emt 0:00:45]} Bxb5 {[%emt 0:02:03]} 38. axb5 {[%emt 0:00:02]} Nd4+ {[%emt 0:00:07]} 39. Kf1 {[%emt 0:02:37]} Nxb5 {[%emt 0:00:06]} 40. Ra1 {[%emt 0:00:00]} Bd4 {[%emt 0:00:00]} 41. Rb1 {[%emt 0:01:42]} Kf7 {[%emt 0:07:08]} 42. Nc1 {[%emt 0:03:26]} Ba7 {[%emt 0:02:32]} 43. Nd3 {[%emt 0:02:22]} Bd4 {[%emt 0:01:29]} 44. Be1 {[%emt 0:00:17]} Ba7 {[%emt 0:06:03]} 45. Bf2 {[%emt 0:03:15]} Na3 {[%emt 0:01:08]} 46. Rxb8 {[%emt 0:00:11]} Bxb8 {[%emt 0:00:05]} 47. Nb4 {[%emt 0:00:10]} Bc7 {[%emt 0:01:42]} 48. Ke2 {[%emt 0:00:43]} Ke8 {[%emt 0:10:24]} 49. Kd3 {[%emt 0:01:28]} Kd7 {[%emt 0:00:23]} 50. Nc6 {[%emt 0:02:17]} Bd8 {[%emt 0:01:19]} 51. Be1 {[%emt 0:06:43]} Bb6 {[%emt 0:01:02]} 52. Bh4 {[%emt 0:01:03]} Nb5 {[%emt 0:00:58]} 53. Bf6 {[%emt 0:00:02]} Na7 {[%emt 0:03:27]} 54. Nxe5+ {[%emt 0:06:04]} dxe5 {[%emt 0:00:03]} 55. Bxe5 {[%emt 0:00:05]} Bc7 {[%emt 0:01:17]} 56. Bf6 {[%emt 0:05:21]} Nb5 {[%emt 0:00:38]} 57. e5 {[%emt 0:00:19]} Bb6 {[%emt 0:00:31]} 58. e6+ {[%emt 0:03:50]} Kd6 {[%emt 0:00:50]} 59. Ke4 {[%emt 0:00:02]} Ba5 {[%emt 0:01:01]} 60. Be5+ {[%emt 0:02:05]} Ke7 {[%emt 0:00:03]} 61. Kxf4 {[%emt 0:00:30]} Bd2+ {[%emt 0:01:21]} 62. Ke4 {[%emt 0:00:27]} Nd6+ {[%emt 0:00:16]} 63. Kd3 {[%emt 0:00:37]} Bc1 {[%emt 0:00:16]} 64. g4 {[%emt 0:00:47]} Ba3 {[%emt 0:00:58]} 65. h3 {[%emt 0:00:57]} Bc1 {[%emt 0:00:11]} 66. Bg3 {[%emt 0:00:58]} Bg5 {[%emt 0:00:46]} 67. Kd4 {[%emt 0:00:21]} Nb7 {[%emt 0:00:27]} 68. Kc4 {[%emt 0:00:31]} Nd8 {[%emt 0:00:17]} 69. f4 {[%emt 0:00:34]} Bf6 {[%emt 0:00:17]} 70. f5 {[%emt 0:00:01]} gxf5 {[%emt 0:00:09]} 71. gxf5 {[%emt 0:00:04]} Nb7 {[%emt 0:00:06]} 72. Kd3 {[%emt 0:01:25]} 1/2-1/2

[Event "Romanian Superliga 2024"]
[Site "Mamaia"]
[Date "2024.09.28"]
[Round "1.14"]
[White "Stoyanov, Tsvetan"]
[Black "Kourkoulos-Arditis, Stamatis"]
[Result "1/2-1/2"]
[ECO "A17"]
[WhiteElo "2471"]
[BlackElo "2570"]
[Annotator "RC"]
[PlyCount "95"]
[EventDate "2024.09.26"]
[EventType "team-tourn"]
[EventCountry "ROU"]
[SourceTitle "playchess.com"]
[Source "ChessBase"]
[SourceQuality "1"]
[TimeControl "40/5400+30:1800+30"]

1. c4 {[%emt 0:00:06]} e6 {[%emt 0:00:10]} 2. Nc3 {[%emt 0:00:39]} d5 {[%emt 0:00:05]} 3. e3 {[%emt 0:00:16]} Nf6 {[%emt 0:00:18]} 4. Nf3 {[%emt 0:00:09]} b6 {[%emt 0:00:52]} 5. cxd5 {[%emt 0:00:53]} exd5 {[%emt 0:00:06]} 6. g3 {[%emt 0:00:16]} Bd6 {[%emt 0:00:49]} 7. Bg2 {[%emt 0:00:41]} O-O {[%emt 0:00:39]} 8. O-O {[%emt 0:00:28]} Re8 {[%emt 0:01:38]} 9. b3 {[%emt 0:11:46]} Ba6 {[%emt 0:08:15]} 10. d3 {[%emt 0:16:46]} Nbd7 {[%emt 0:02:51]} 11. Bb2 {[%emt 0:03:01]} Bf8 {[%emt 0:17:10]} 12. Ne2 {[%emt 0:10:28]} c5 {[%emt 0:02:12]} 13. Rc1 {[%emt 0:02:05]} Rc8 {[%emt 0:02:34]} 14. Nf4 {[%emt 0:07:16]} h6 {[%emt 0:12:18]} 15. Re1 {[%emt 0:04:58]} Bb7 {[%emt 0:08:28]} 16. Rc2 {[%emt 0:10:39]} Bd6 {[%emt 0:07:43]} 17. Ne2 {[%emt 0:03:11]} b5 {[%emt 0:01:09]} 18. Nh4 {[%emt 0:04:38]} Bf8 {[%emt 0:00:36]} 19. Qa1 {[%emt 0:02:26]} a5 {[%emt 0:04:15]} 20. Nf3 {[%emt 0:06:43]} b4 {[%emt 0:03:06]} 21. Ne5 {[%emt 0:05:55]} Nxe5 {[%emt 0:04:38]} 22. Bxe5 {[%emt 0:00:01]} Nd7 {[%emt 0:00:12]} 23. Bb2 {[%emt 0:00:03]} a4 {[%emt 0:04:32]} 24. Qd1 {[%emt 0:02:56]} Nb6 {[%emt 0:00:27]} 25. Nf4 {[%emt 0:00:30]} Rc7 {[%emt 0:02:39]} 26. h4 {[%emt 0:03:13]} Bc8 {[%emt 0:06:59]} 27. Rc1 {[%emt 0:00:51]} Ra7 {[%emt 0:00:31]} 28. Qh5 {[%emt 0:00:51]} g6 {[%emt 0:04:18]} 29. Nxg6 {[%emt 0:02:17]} fxg6 {[%emt 0:00:20]} 30. Qxg6+ {[%emt 0:00:02]} Bg7 {[%emt 0:00:07]} 31. Bxg7 {[%emt 0:00:36]} Rxg7 {[%emt 0:00:06]} 32. Qc6 {[%emt 0:00:23]} axb3 {[%emt 0:02:34]} 33. axb3 {[%emt 0:00:01]} Rf8 {[%emt 0:02:08]} 34. Rxc5 {[%emt 0:01:35]} Rf6 {[%emt 0:00:57]} 35. Qb5 {[%emt 0:00:28]} Qf8 {[%emt 0:00:09]} 36. Rc2 {[%emt 0:00:48]} Bd7 {[%emt 0:01:16]} 37. Qa5 {[%emt 0:00:29]} Bg4 {[%emt 0:01:08]} 38. Rec1 {[%emt 0:00:24]} Kh7 {[%emt 0:00:19]} 39. e4 {[%emt 0:00:35]} Nd7 {[%emt 0:00:38]} 40. Qxd5 {[%emt 0:00:00]} Bf3 {[%emt 0:00:00]} 41. Bh3 {[%emt 0:20:07]} Nb6 {[%emt 0:04:44]} 42. Qd4 {[%emt 0:10:03]} Qd6 {[%emt 0:16:18]} 43. Bf5+ {[%emt 0:00:42]} Kh8 {[%emt 0:00:07]} 44. Qe3 {[%emt 0:01:24]} Rxf5 {[%emt 0:03:10]} 45. exf5 {[%emt 0:00:01]} Rxg3+ {[%emt 0:00:06]} 46. fxg3 {[%emt 0:00:31]} Qxg3+ {[%emt 0:00:04]} 47. Kf1 {[%emt 0:00:06]} Qh3+ {[%emt 0:00:04]} 48. Kf2 {[%emt 0:00:50]} 1/2-1/2